fUST/lending_fUST_20241202
["ID","MTS","AMOUNT","RATE_DAILY","PERIOD"]
[343961060,1733152028141,-1026.48,0.00028331,7]
[343961061,1733152028160,-500.0,0.00028331,7]
[343961062,1733152028181,-500.0,0.00028331,7]
[343961063,1733152028203,-500.0,0.00028331,7]
[343961064,1733152028222,-500.0,0.00028331,7]
[343961065,1733152028242,-502.67456308,0.00028331,7]
[343961066,1733152028262,-201.00420897,0.00028331,7]
[343961067,1733152028289,-500.0,0.00028331,7]
[343961068,1733152028309,-500.0,0.00028331,7]
[343961069,1733152028329,-500.0,0.00028331,7]
[343961070,1733152028350,-500.0,0.00028331,7]
[343961071,1733152028370,-500.0,0.00028331,7]
[343961072,1733152028391,-500.0,0.00028331,7]
[343961073,1733152028413,-596.14366982,0.00028331,7]
[343961074,1733152028434,-502.12199519,0.00028331,7]
[343961075,1733152028456,-500.0,0.00028331,7]
[343961076,1733152028483,-432.55,0.000285,2]
[343961077,1733152028504,-500.0,0.00028604,7]
[343961078,1733152028530,-500.0,0.00028604,7]
[343961079,1733152028550,-500.0,0.00028604,7]
[343961080,1733152028570,-504.84,0.00028604,7]
[343961081,1733152028592,-500.0,0.00028604,7]
[343961082,1733152028615,-1026.48,0.00028605,7]
[343961083,1733152028637,-500.0,0.00028605,7]
[343961084,1733152028658,-500.0,0.00028605,7]
[343961085,1733152028681,-500.0,0.00028605,7]
[343961086,1733152028703,-500.0,0.00028878,7]
[343961087,1733152028723,-500.0,0.00028878,7]
[343961088,1733152028745,-377.9132294,0.00028879,2]
[343961089,1733152028769,-1026.48,0.00028879,7]
[343961090,1733152028792,-402.0,0.00028879,7]
[343961091,1733152028813,-500.0,0.00028947,7]
[343961092,1733152028835,-420.0,0.00028996,2]
[343961093,1733152028858,-500.0,0.00029122,7]
[343961094,1733152028879,-500.0,0.00029122,7]
[343961095,1733152028900,-500.0,0.00029122,7]
[343961096,1733152028924,-500.0,0.00029122,7]
[343961097,1733152028945,-500.0,0.00029122,7]
[343961098,1733152028966,-500.0,0.00029122,7]
[343961099,1733152028987,-505.14237993,0.00029122,7]
[343961100,1733152029008,-500.0,0.00029122,7]
[343961101,1733152029033,-500.0,0.00029122,7]
[343961102,1733152029053,-500.0,0.00029122,7]
[343961103,1733152029073,-500.0,0.00029122,7]
[343961104,1733152029094,-500.0,0.00029122,7]
[343961105,1733152029114,-500.0,0.00029122,7]
[343961106,1733152029138,-500.0,0.00029122,7]
[343961107,1733152029256,-500.0,0.00029122,7]
[343961108,1733152029289,-500.0,0.00029122,7]
[343961109,1733152029314,-500.0,0.00029122,7]
[343961110,1733152029339,-516.05412425,0.00029122,7]
[343961111,1733152029363,-500.0,0.00029122,7]
[343961112,1733152029389,-500.0,0.00029122,7]
[343961113,1733152029414,-500.0,0.00029122,7]
[343961114,1733152029439,-500.0,0.00029122,7]
[343961115,1733152029461,-500.0,0.00029122,7]
[343961116,1733152029483,-500.0,0.00029122,7]
[343961117,1733152029506,-500.0,0.00029122,7]
[343961118,1733152029533,-500.0,0.00029122,7]
[343961119,1733152029556,-500.0,0.00029122,7]
[343961120,1733152029579,-500.0,0.00029122,7]
[343961121,1733152029601,-593.73,0.00029152,7]
[343961122,1733152029624,-500.0,0.00029152,7]
[343961123,1733152029646,-1026.48,0.00029153,7]
[343961124,1733152029667,-655.7,0.0002933,15]
[343961125,1733152029687,-525.01464265,0.00029396,7]
[343961126,1733152029709,-448.3150531,0.00029396,7]
[343961127,1733152029729,-493.18663587,0.00029396,7]
[343961128,1733152029751,-424.89156663,0.00029396,7]
[343961129,1733152029777,-559.70229097,0.00029396,7]
[343961130,1733152029798,-517.24919213,0.00029396,7]
[343961131,1733152029819,-379.45815419,0.00029396,7]
[343961132,1733152029845,-192.58,0.00029426,7]
[343961133,1733152029867,-1026.48,0.00029427,7]
[343961134,1733152029892,-500.0,0.00029464,2]
[343961135,1733152029915,-500.0,0.00029465,7]
[343961136,1733152029939,-500.0,0.00029465,7]
[343961137,1733152029962,-500.0,0.00029465,7]
[343961138,1733152029982,-500.0,0.00029465,7]
[343961139,1733152030004,-500.0,0.00029465,7]
[343961140,1733152030030,-500.0,0.00029465,7]
[343961141,1733152030050,-500.0,0.00029465,7]
[343961142,1733152030071,-500.0,0.00029465,7]
[343961143,1733152030092,-500.0,0.00029465,7]
[343961144,1733152030113,-500.0,0.00029465,7]
[343961145,1733152030136,-500.0,0.00029465,7]
[343961146,1733152030158,-500.0,0.00029465,7]
[343961147,1733152030179,-500.0,0.00029465,7]
[343961148,1733152030201,-500.0,0.00029465,7]
[343961149,1733152030223,-500.0,0.00029465,7]
[343961150,1733152030245,-500.0,0.00029465,7]
[343961151,1733152030274,-530.93598257,0.00029465,7]
[343961152,1733152030296,-583.57050332,0.00029465,7]
[343961153,1733152030318,-500.0,0.00029465,7]
[343961154,1733152030338,-500.0,0.00029465,7]
[343961155,1733152030358,-500.0,0.00029465,7]
[343961156,1733152030379,-500.0,0.00029465,7]
[343961157,1733152030399,-500.0,0.00029465,7]
[343961158,1733152030419,-507.98551668,0.00029465,7]
[343961159,1733152030440,-500.0,0.00029465,7]
[343961160,1733152030460,-500.0,0.00029465,7]
[343961161,1733152030481,-1000.0,0.000295,7]
[343961162,1733152030503,-1026.48,0.00029701,7]
[343961163,1733152030531,-500.0,0.00029739,7]
[343961164,1733152030552,-500.0,0.00029739,7]
[343961165,1733152030574,-500.0,0.00029739,7]
[343961166,1733152030597,-500.0,0.00029739,7]
[343961167,1733152030620,-500.0,0.00029739,7]
[343961168,1733152030643,-500.0,0.00029739,7]
[343961169,1733152030665,-1026.48,0.00029975,7]
[343961170,1733152030686,-2876.91799904,0.0003,7]
[343961171,1733152030706,-1151.62,0.0003,120]
[343961172,1733152030728,-204.0,0.0003,2]
[343961173,1733152030749,-229.118982,0.00030137,120]
[343961174,1733152030778,-1026.48,0.00030249,7]
[343961175,1733152030801,-500.0,0.00030285,7]
[343961176,1733152030823,-170.68029485,0.00030285,7]
[343961177,1733152030847,-486.12,0.00030322,10]
[343961178,1733152030875,-500.0,0.00030326,7]
[343961179,1733152030900,-500.0,0.00030326,7]
[343961180,1733152030922,-500.0,0.00030326,7]
[343961181,1733152030944,-500.0,0.00030326,7]
[343961182,1733152030965,-500.0,0.00030326,7]
[343961183,1733152030985,-6666.0,0.00030332,2]
[343961184,1733152031010,-153.3,0.000304,31]
[343961185,1733152031039,-153.3,0.000304,31]
[343961186,1733152031059,-150.5,0.00030402,120]
[343961187,1733152031080,-187.5,0.00030402,120]
[343961188,1733152031100,-150.5,0.00030412,120]
[343961189,1733152031120,-150.5,0.00030412,120]
[343961190,1733152031141,-150.5,0.00030422,120]
[343961191,1733152031162,-150.5,0.00030422,120]
[343961192,1733152031183,-151.0,0.00030432,7]
[343961193,1733152031203,-151.0,0.00030432,7]
[343961194,1733152031223,-154.572936,0.00030432,7]
[343961195,1733152031244,-151.0,0.00030432,7]
[343961196,1733152031266,-151.0,0.00030432,7]
[343961197,1733152031291,-151.0,0.00030432,7]
[343961198,1733152031327,-151.975445,0.00030432,7]
[343961199,1733152031351,-151.0,0.00030432,7]
[343961200,1733152031373,-151.0,0.00030432,7]
[343961201,1733152031396,-151.0,0.00030432,7]
[343961202,1733152031421,-151.0,0.00030432,7]
[343961203,1733152031445,-151.0,0.00030432,7]
[343961204,1733152031468,-151.0,0.00030432,7]
[343961205,1733152031492,-151.0,0.00030432,7]
[343961206,1733152031521,-1190.3673956,0.00030438,2]
[343961207,1733152031548,-377.9132294,0.00030439,7]
[343961208,1733152031572,-377.9132294,0.00030439,7]
[343961209,1733152031603,-151.0,0.00030439,7]
[343961210,1733152031625,-151.0,0.00030439,7]
[343961211,1733152031648,-151.0,0.00030439,7]
[343961212,1733152031672,-151.0,0.00030439,7]
[343961213,1733152031696,-151.0,0.00030439,7]
[343961214,1733152031720,-151.0,0.00030439,7]
[343961215,1733152031743,-151.0,0.00030439,7]
[343961216,1733152031765,-151.0,0.00030439,7]
[343961217,1733152031794,-151.0,0.00030439,7]
[343961218,1733152031816,-151.0,0.00030439,7]
[343961219,1733152031842,-151.0,0.00030439,7]
[343961220,1733152031864,-151.0,0.00030439,7]
[343961221,1733152032005,-151.0,0.00030439,7]
[343961222,1733152032033,-151.0,0.00030439,7]
[343961223,1733152032054,-265.275831,0.00030439,7]
[343961224,1733152032077,-162.27067,0.00030439,7]
[343961225,1733152032101,-329.89407,0.0003044,7]
[343961226,1733152032123,-329.89407,0.0003044,7]
[343961227,1733152032146,-329.89407,0.0003044,7]
[343961228,1733152032167,-329.89407,0.0003044,7]
[343961229,1733152032189,-329.89407,0.0003044,7]
[343961230,1733152032211,-329.89407,0.0003044,7]
[343961231,1733152032233,-329.89407,0.0003044,7]
[343961232,1733152032255,-329.89407,0.0003044,7]
[343961233,1733152032280,-329.89407,0.0003044,7]
[343961234,1733152032302,-329.89407,0.0003044,7]
[343961235,1733152032324,-329.89407,0.0003044,7]
[343961236,1733152032345,-329.89407,0.0003044,7]
[343961237,1733152032367,-329.89407,0.0003044,7]
[343961238,1733152032389,-329.89407,0.0003044,7]
[343961239,1733152032410,-329.89407,0.0003044,7]
[343961240,1733152032432,-329.89407,0.0003044,7]
[343961241,1733152032453,-329.89407,0.0003044,7]
[343961242,1733152032475,-329.89407,0.0003044,7]
[343961243,1733152032496,-329.89407,0.0003044,7]
[343961244,1733152032519,-329.89408,0.0003044,7]
[343961245,1733152032542,-151.0,0.0003044,7]
[343961246,1733152032563,-151.0,0.0003044,7]
[343961247,1733152032584,-151.0,0.0003044,7]
[343961248,1733152032606,-151.0,0.0003044,7]
[343961249,1733152032627,-151.0,0.0003044,7]
[343961250,1733152032648,-151.0,0.0003044,7]
[343961251,1733152032668,-503.4663938,0.00030473,5]
[343961252,1733152032689,-1599.0,0.000305,3]
[343961253,1733152032710,-1026.48,0.00030523,7]
[343961254,1733152032730,-20000.0,0.00030537,5]
[343961255,1733152032752,-500.0,0.00030559,7]
[343961256,1733152032778,-1026.48,0.00030797,7]
[343961257,1733152032801,-500.0,0.00030833,7]
[343961258,1733152032821,-153.0,0.00031043,2]
[343961259,1733152032843,-2000.0,0.00031057,2]
[343961260,1733152032867,-1026.48,0.00031071,7]
[343961261,1733152032891,-500.0,0.00031107,7]
[343961262,1733152032912,-1026.48,0.00031345,7]
[343961263,1733152032936,-500.0,0.00031381,7]
[343961264,1733152032958,-1000.0,0.00031506,30]
[343961265,1733152032979,-1000.0,0.00031506,30]
[343961266,1733152032999,-1000.0,0.00031506,30]
[343961267,1733152033024,-1000.0,0.00031506,30]
[343961268,1733152033045,-1000.0,0.00031506,30]
[343961269,1733152033069,-1000.0,0.00031506,30]
[343961270,1733152033090,-1000.0,0.00031506,30]
[343961271,1733152033111,-1000.0,0.00031506,30]
[343961272,1733152033133,-150.21,0.00031526,10]
[343961273,1733152033153,-150.21,0.00031526,10]
[343961274,1733152033174,-150.21,0.00031526,10]
[343961275,1733152033195,-1026.48,0.00031619,7]
[343961276,1733152033216,-500.0,0.00031655,7]
[343961277,1733152033236,-1000.0,0.00031657,30]
[343961278,1733152033256,-150.21,0.000318,10]
[343961279,1733152033281,-150.21,0.000318,10]
[343961280,1733152033303,-150.21,0.000318,10]
[343961281,1733152033325,-168.90296946,0.00031886,2]
[343961282,1733152033347,-1026.48,0.00031893,7]
[343961283,1733152033369,-587.0,0.00031896,2]
[343961284,1733152033391,-500.0,0.00031929,7]
[343961285,1733152033412,-1000.0,0.00031931,30]
[343961286,1733152033434,-33180.6555043,0.00032,5]
[343961287,1733152033456,-900.0,0.00032,120]
[343961288,1733152033478,-2102.64970756,0.00032,120]
[343961289,1733152033499,-1523.056022,0.00032,60]
[343961290,1733152033522,-150.21,0.00032074,10]
[343961291,1733152033543,-199.58,0.00032074,10]
[343961292,1733152033566,-150.21,0.00032074,10]
[343961293,1733152033586,-12121.57329632,0.0003212,10]
[343961294,1733152051326,-163.0,0.00025,2]
[343961295,1733152051349,-392.76658989,0.00027397,7]
[343961298,1733152147276,-107.23341011,0.00027397,7]
[343961299,1733152147301,-500.0,0.00027397,7]
[343961300,1733152147325,-500.0,0.00027397,7]
[343961301,1733152147350,-500.0,0.00027397,7]
[343961302,1733152147376,-500.0,0.00027671,7]
[343961303,1733152147405,-500.0,0.00027671,7]
[343961304,1733152147429,-196.42,0.00027945,7]
[343961305,1733152147451,-223.48,0.00027945,7]
[343961306,1733152147632,-172.183979,0.00028012,2]
[343961307,1733152147658,-174.341766,0.00028012,2]
[343961308,1733152147680,-200.503338,0.00028012,2]
[343961309,1733152147703,-500.0,0.0002833,7]
[343961310,1733152147727,-500.0,0.0002833,7]
[343961311,1733152147749,-500.0,0.00028331,7]
[343961312,1733152147771,-500.0,0.00028331,7]
[343961313,1733152147794,-500.0,0.00028604,7]
[343961314,1733152147816,-301.14,0.00028604,7]
[343961315,1733152153947,500.0,0.00027397,7]
[343961316,1733152161896,504.84,0.00027397,7]
[343961317,1733152171028,500.0,0.0002833,7]
[343961320,1733152179176,500.0,0.0002833,7]
[343961321,1733152185161,500.0,0.00027397,7]
[343961322,1733152186633,247.76828152,0.0002833,7]
[343961369,1733152232506,-500.0,0.00027397,7]
[343961371,1733152232516,-503.99,0.00027397,7]
[343961373,1733152232527,-503.99,0.00027671,7]
[343961375,1733152232537,-503.99,0.00027945,7]
[343961377,1733152232547,-503.99,0.00028219,7]
[343961378,1733152232557,-252.23171848,0.0002833,7]
[343961379,1733152232568,-396.27128118,0.0002833,7]
[343961380,1733152232581,-103.72871882,0.0002833,7]
[343961382,1733152232591,-480.77128118,0.0002833,7]
[343961383,1733152232603,-19.22871882,0.0002833,7]
[343961385,1733152232612,-500.0,0.0002833,7]
[343961386,1733152232622,-500.0,0.0002833,7]
[343961387,1733152232631,-500.0,0.0002833,7]
[343961388,1733152232641,-500.0,0.0002833,7]
[343961389,1733152232650,-253.32451548,0.0002833,7]
[343961390,1733152232659,-571.88656126,0.00028331,7]
[343961391,1733152232669,-503.99,0.00028493,7]
[343961392,1733152232678,-24.87928744,0.00028767,7]
[343961394,1733152232689,-479.11071256,0.00028767,7]
[343961396,1733152232698,-437.35,0.00029,2]
[343961397,1733152232708,-503.99,0.00029041,7]
[343961398,1733152232718,-500.0,0.00029122,7]
[343961399,1733152232730,-500.0,0.00029122,7]
[343961400,1733152232740,-629.55191917,0.00029122,7]
[343961401,1733152232749,-226.89366266,0.00029122,7]
[343961403,1733152232759,-500.0,0.00029122,7]
[343961404,1733152232768,-500.0,0.00029122,7]
[343961406,1733152232777,-503.99,0.00029315,7]
[343961407,1733152232787,-500.0,0.00029396,7]
[343961408,1733152232796,-500.0,0.00029396,7]
[343961409,1733152232805,-750.85,0.00029404,15]
[343961410,1733152232817,-174.341766,0.00029413,2]
[343961411,1733152232828,-500.0,0.00029585,7]
[343961412,1733152232837,-503.99,0.00029589,7]
[343961413,1733152232847,-832.41,0.0002979,10]
[343961414,1733152232856,-693.68,0.0002979,10]
[343961415,1733152232866,-586.24160993,0.00029799,2]
[343961416,1733152232877,-91517.0289266,0.000298,120]
[343961417,1733152232887,-503.99,0.00029863,7]
[343961418,1733152232901,-503.99,0.00030136,7]
[343961419,1733152232912,-6666.0,0.00030339,2]
[343961420,1733152232922,-423.93079163,0.00030339,2]
[343961421,1733152232934,-1352.16025122,0.00030339,2]
[343961422,1733152232944,-503.99,0.0003041,7]
[343961423,1733152232955,-500.0,0.00030438,7]
[343961424,1733152232965,-500.0,0.00030438,7]
[343961425,1733152232982,-500.0,0.00030438,7]
[343961426,1733152232993,-500.0,0.00030438,7]
[343961427,1733152233004,-500.0,0.00030438,7]
[343961428,1733152233016,-595.1836978,0.00030438,2]
[343961429,1733152233027,-410.0,0.00030439,2]
[343961430,1733152233038,-848701.32286263,0.00030439,10]
[343961431,1733152233085,-3810.84911552,0.00030439,10]
[343961445,1733152238384,-442.27286401,0.0002833,7]
[343961451,1733152238483,-57.72713599,0.0002833,7]
[343961452,1733152238494,-500.0,0.0002833,7]
[343961453,1733152238506,-375.636,0.00029404,15]
[343961454,1733152238516,-500.0,0.00029799,7]
[343961455,1733152238525,-24800.5837226,0.00030439,10]
[343961456,1733152238537,-52970.92625654,0.00030439,10]
[343961486,1733152240953,-55951.34979605,0.00030439,10]
[343961487,1733152240965,-79481.92407592,0.00030439,10]
[343961507,1733152243481,-374.2299,0.00029404,15]
[343961508,1733152243491,-48.79643693,0.00030439,10]
[343961509,1733152243503,-487.13971896,0.00030439,10]
[343961510,1733152243541,-1680.73301728,0.00030439,10]
[343961516,1733152243695,-2152.03146299,0.00030439,10]
[343961520,1733152243708,-26504.69794,0.00030439,10]
[343961545,1733152246621,-62.07012802,0.00029404,15]
[343961551,1733152256507,185.10237904,0.00024953,2]
[343961552,1733152265134,2655.33186123,0.00024953,2]
[343961553,1733152265158,2344.66813877,0.00024953,2]
[343961554,1733152282037,400.0,0.00013973,2]
[343961555,1733152282514,11.64066123,0.00020447,2]
[343961556,1733152522095,-388.35933877,0.00020447,2]
[343961557,1733152522118,-162.0,0.00025,2]
[343961572,1733152963726,1514.30866522,0.00025,2]
[343961573,1733153013120,-160.114495,0.00026593,2]
[343961574,1733153013143,-300.0,0.00026739,2]
[343961575,1733153013170,-300.0,0.00026739,2]
[343961576,1733153013195,-40399.0789747,0.0002674,2]
[343961577,1733153013219,-400.0,0.00026921,2]
[343961578,1733153013240,-2661.850462,0.00027153,2]
[343961579,1733153013264,-480.18575296,0.00028,2]
[343961580,1733153048936,400.0,0.00013973,2]
[343961581,1733153059202,-400.0,0.00020447,2]
[343961582,1733153061834,400.0,0.00026921,2]
[343961583,1733153084088,24880.0,0.00027191,2]
[343961584,1733153099424,398.30000951,0.00027397,7]
[343961619,1733153118873,500.0,0.00027397,7]
[343961620,1733153138044,500.0,0.00027397,7]
[343961621,1733153139117,500.0,0.00027397,7]
[343961622,1733153139384,500.0,0.00027671,7]
[343961623,1733153139663,500.0,0.00027945,7]
[343961645,1733153158343,160.056265,0.00027587,2]
[343961702,1733153219825,500.0,0.00027397,7]
[343961710,1733153222817,500.0,0.00027397,7]
[343961711,1733153223128,435.51048286,0.00027671,7]
[343961712,1733153226144,-163.49974,0.00028012,2]
[343961713,1733153226166,-443.742605,0.00028012,2]
[343961714,1733153226189,-160.402669,0.00028012,2]
[343961715,1733153226215,-500.0,0.00028219,7]
[343961716,1733153226240,-300.0,0.0002825,2]
[343961717,1733153226267,-334.41535789,0.00028251,7]
[343961718,1733153226290,-500.0,0.00028251,7]
[343961719,1733153226316,-500.0,0.00028251,7]
[343961720,1733153226353,-376.11419139,0.00028251,7]
[343961721,1733153226379,-500.0,0.00028251,7]
[343961722,1733153226403,-500.0,0.00028251,7]
[343961723,1733153226427,-500.0,0.00028251,7]
[343961724,1733153226450,-500.0,0.00028251,7]
[343961725,1733153226472,-500.0,0.00028251,7]
[343961726,1733153226494,-206.07243793,0.00028251,7]
[343961727,1733153226516,-500.0,0.00028251,7]
[343961728,1733153226539,-500.0,0.00028251,7]
[343961729,1733153226563,-500.0,0.00028251,7]
[343961730,1733153226585,-500.0,0.00028251,7]
[343961731,1733153226614,-500.0,0.00028251,7]
[343961732,1733153226636,-500.0,0.00028251,7]
[343961733,1733153226659,-500.0,0.00028251,7]
[343961734,1733153226681,-305.38168612,0.00028251,7]
[343961735,1733153226705,-500.0,0.00028251,7]
[343961736,1733153226728,-500.0,0.00028251,7]
[343961737,1733153226750,-500.0,0.00028251,7]
[343961738,1733153226773,-507.89898494,0.00028251,7]
[343961739,1733153226796,-500.0,0.00028251,7]
[343961740,1733153226819,-500.0,0.00028251,7]
[343961741,1733153226845,-500.0,0.00028251,7]
[343961742,1733153226867,-500.0,0.00028251,7]
[343961743,1733153226890,-500.0,0.00028251,7]
[343961744,1733153226914,-500.0,0.00028251,7]
[343961745,1733153226936,-500.0,0.00028251,7]
[343961746,1733153226960,-500.0,0.00028251,7]
[343961747,1733153226982,-500.0,0.00028251,7]
[343961748,1733153227004,-507.45577053,0.00028331,7]
[343961749,1733153227026,-500.0,0.00028331,7]
[343961750,1733153227048,-580.60293112,0.00028331,7]
[343961751,1733153227070,-500.0,0.00028331,7]
[343961752,1733153227097,-500.0,0.00028331,7]
[343961753,1733153227119,-500.0,0.00028331,7]
[343961754,1733153227141,-569.9369643,0.00028331,7]
[343961755,1733153227163,-500.0,0.00028331,7]
[343961756,1733153227185,-443.742605,0.00028362,2]
[343961757,1733153227210,-500.0,0.00028493,7]
[343961758,1733153227239,-282.05716843,0.00028525,7]
[343961759,1733153227265,-500.0,0.00028525,7]
[343961760,1733153227290,-500.0,0.00028525,7]
[343961761,1733153227312,-500.0,0.00028525,7]
[343961762,1733153227335,-500.0,0.00028525,7]
[343961763,1733153227361,-500.0,0.00028525,7]
[343961764,1733153227385,-500.0,0.00028525,7]
[343961765,1733153227408,-298.61,0.00028605,7]
[343961766,1733153227433,-443.742605,0.00028712,2]
[343961767,1733153227460,-500.0,0.00028767,7]
[343961768,1733153227486,-500.0,0.00028799,7]
[343961769,1733153227512,-839.13515673,0.00028962,2]
[343961770,1733153227536,-1000.0,0.00029,29]
[343961771,1733153227561,-500.0,0.00029041,7]
[343961772,1733153227587,-443.742605,0.00029062,2]
[343961773,1733153227620,-500.0,0.00029073,7]
[343961774,1733153227645,-393.62,0.000291,2]
[343961775,1733153227671,-839.13515666,0.0002916,2]
[343961776,1733153227834,-500.0,0.00029315,7]
[343961777,1733153227870,-500.0,0.00029347,7]
[343961778,1733153227895,-839.13515666,0.00029357,2]
[343961779,1733153227919,-375.50301,0.00029404,15]
[343961780,1733153227942,-163.49974,0.00029413,2]
[343961781,1733153227965,-443.742605,0.00029413,2]
[343961782,1733153227989,-839.13515666,0.00029555,2]
[343961783,1733153228014,-500.0,0.00029589,7]
[343961784,1733153228040,-358.58146971,0.00029621,7]
[343961785,1733153228070,-839.13515666,0.00029753,2]
[343961786,1733153228115,-500.0,0.00029799,7]
[343961787,1733153228145,-500.0,0.00029799,7]
[343961788,1733153228170,-457.51115234,0.00029799,7]
[343961789,1733153228193,-500.0,0.00029799,7]
[343961790,1733153228216,-494.37843343,0.00029799,7]
[343961791,1733153228252,-506.17613067,0.00029799,7]
[343961792,1733153228284,-500.0,0.00029799,7]
[343961793,1733153228308,-500.0,0.00029799,7]
[343961794,1733153228333,-500.0,0.00029799,7]
[343961795,1733153228363,-500.0,0.00029863,7]
[343961796,1733153228390,-379.19641357,0.00029895,2]
[343961797,1733153228414,-839.13515666,0.00029951,2]
[343961798,1733153228441,-160.0,0.00029973,3]
[343961799,1733153228465,-1000.0,0.0003,30]
[343961800,1733153228489,-988.69093544,0.0003,2]
[343961801,1733153228515,-206.0,0.0003,2]
[343961802,1733153228542,-500.0,0.00030073,7]
[343961803,1733153228568,-439.51049514,0.00030073,7]
[343961804,1733153228602,-500.0,0.00030073,7]
[343961805,1733153228628,-531.0,0.0003008,2]
[343961806,1733153228652,-2176.0,0.0003008,2]
[343961807,1733153228676,-2378.0,0.0003008,2]
[343961808,1733153228700,-2978.567,0.0003008,2]
[343961809,1733153228724,-500.0,0.00030136,7]
[343961810,1733153228748,-197.042322,0.00030137,120]
[343961811,1733153228777,-839.13515666,0.00030148,2]
[343961812,1733153228800,-300.31768039,0.00030325,2]
[343961813,1733153228823,-6666.0,0.00030339,2]
[343961814,1733153228853,-666.0,0.00030339,2]
[343961815,1733153228877,-839.13515666,0.00030346,2]
[343961816,1733153228902,-3312.99523298,0.00030346,2]
[343961817,1733153228931,-153.05,0.000304,31]
[343961818,1733153228959,-153.05,0.000304,31]
[343961819,1733153228988,-153.05,0.000304,31]
[343961820,1733153229017,-153.05,0.000304,31]
[343961821,1733153229043,-500.0,0.0003041,7]
[343961822,1733153229067,-151.0,0.00030439,7]
[343961823,1733153229096,-151.0,0.00030439,7]
[343961824,1733153229119,-151.0,0.00030439,7]
[343961825,1733153229143,-151.0,0.00030439,7]
[343961826,1733153229166,-151.0,0.00030439,7]
[343961827,1733153229189,-151.0,0.00030439,7]
[343961828,1733153229212,-151.0,0.00030439,7]
[343961829,1733153229239,-151.0,0.00030439,7]
[343961830,1733153229267,-500.0,0.00030445,2]
[343961831,1733153229292,-192.59090878,0.00030445,2]
[343961832,1733153229321,-3357.14252483,0.00030446,2]
[343961833,1733153229357,-379.19641357,0.00030446,7]
[343961834,1733153229381,-379.19641357,0.00030446,7]
[343961835,1733153229404,-8580.2140748,0.00030628,2]
[343961836,1733153229430,-500.0,0.00030684,7]
[343961837,1733153229453,-8580.2140748,0.0003071,2]
[343961838,1733153229477,-600.0,0.00030835,2]
[343961839,1733153229502,-500.0,0.00030958,7]
[343961840,1733153229530,-1000.0,0.00031,120]
[343961841,1733153229568,-420.0,0.00031075,2]
[343961842,1733153229597,-153.0,0.00031142,2]
[343961843,1733153229623,-153.0,0.00031144,2]
[343961844,1733153229646,-153.0,0.00031144,2]
[343961845,1733153229671,-153.0,0.00031146,2]
[343961846,1733153229695,-153.0,0.00031147,2]
[343961847,1733153229719,-153.0,0.00031149,2]
[343961848,1733153229743,-153.0,0.00031149,2]
[343961849,1733153229766,-8580.2140748,0.00031154,2]
[343961850,1733153229790,-150.0,0.00031192,2]
[343961851,1733153229815,-500.0,0.00031232,7]
[343961852,1733153229841,-152.39915339,0.00031373,2]
[343961853,1733153229867,-8580.2140748,0.00031481,2]
[343961854,1733153229891,-1000.0,0.00031506,30]